Workbook

Sheet Sheet1
A1: 4 | O1: game over | Q1: tons | Z1: sales | AI1: profit | AS1: max profit
A2: 1 | O2: 1 | Q2: ut | R2: st | S2: ct | T2: wc | U2: wp | V2: c | W2: ip | X2: cp | Y2: w | Z2: ut | AA2: st | AB2: ct | AC2: wc | AD2: wp | AE2: c | AF2: ip | AG2: cp | AH2: w | AI2: ut | AJ2: st | AK2: ct | AL2: wc | AM2: wp | AN2: c | AO2: ip | AP2: cp | AQ2: w
A3: =SUM(A1:A2) -> 5 | B3: =IF(A1=0,"START OF PROCESSING",IF(AND(A1>0,A1<4),"IN PROCESS","END OF PROCESSING")) -> END OF PROCESSING | Q3: 100 | R3: 100 | S3: 200 | T3: 0 | U3: 320 | V3: 0 | W3: 80 | X3: 0 | Y3: 0 | Z3: 0 | AA3: 1200 | AB3: 4800 | AC3: 0 | AD3: 12441.6 | AE3: 0 | AF3: 7962.624 | AG3: 0 | AH3: 0 | AI3: -790 | AJ3: -110 | AK3: 1585 | AL3: 0 | AM3: 3332.777945 | AN3: 0 | AO3: 2229.766857 | AP3: 0 | AQ3: 0 | AS3: 37632.6912
B4: =IF(AND(Q19>699,Q19<800),"consumer paper",IF(AND(Q19>599,Q19<800),"industrial paper",IF(AND(Q19>499,Q19<800),"cardboard",IF(AND(Q19>399,Q19<800),"wood pulp",IF(AND(Q19>299,Q19<800),"wood chip",IF(AND(Q19>199,Q19<800),"cut timber",IF(AND(Q19>99,Q19<800),"stripped timber",B36))))))) -> stripped timber | C4: 57 | E4: 63 | G4: 21 | I4: 17 | K4: 102 | M4: =C4 -> 57 | Q4: =IF($B$4="unprocessed timber",U19,0) -> 0 | R4: =IF($B$4=$B$10,U19*Sheet2!C10,0) -> 100 | S4: =IF($B$4=$B$11,U19*Sheet2!C11,0) -> 0 | T4: =IF($B$4=$B$12,U19*Sheet2!C12,0) -> 0 | U4: =IF($B$4=$B$13,U19*Sheet2!C13,0) -> 0 | V4: =IF($B$4=$B$14,U19*Sheet2!C14,0) -> 0 | W4: =IF($B$4=$B$15,U19*Sheet2!C15,0) -> 0 | X4: =IF($B$4=$B$16,U19*Sheet2!C16,0) -> 0 | Y4: =IF($B$4=$B$17,U19,0) -> 0 | Z4: =IF($B$4="unprocessed timber",C5,0) -> 0 | AA4: =IF($B$4=$B$10,C5,0) -> 1200 | AB4: =IF($B$4=$B$11,C5,0) -> 0 | AC4: =IF($B$4=$B$12,C5,0) -> 0 | AD4: =IF($B$4=$B$13,C5,0) -> 0 | AE4: =IF($B$4=$B$14,C5,0) -> 0 | AF4: =IF($B$4=$B$15,C5,0) -> 0 | AG4: =IF($B$4=$B$16,C5,0) -> 0 | AH4: =IF($B$4=$B$17,C5,0) -> 0 | AI4: =IF($B$4="unprocessed timber",C7,0) -> 0 | AJ4: =IF($B$4=$B$10,C7,0) -> -110 | AK4: =IF($B$4=$B$11,C7,0) -> 0 | AL4: =IF($B$4=$B$12,C7,0) -> 0 | AM4: =IF($B$4=$B$13,C7,0) -> 0 | AN4: =IF($B$4=$B$14,C7,0) -> 0 | AO4: =IF($B$4=$B$15,C7,0) -> 0 | AP4: =IF($B$4=$B$16,C7,0) -> 0 | AQ4: =IF($B$4=$B$17,C7,0) -> 0 | AS4: =Z49 -> 1200
B5: sales | C5: =IF($B$4=$B$10,$E$10,IF($B$4=$B$11,$E$11,IF($B$4=$B$12,$E$12,IF($B$4=$B$13,$E$13,IF($B$4=$B$14,$E$14,IF($B$4=$B$15,$E$15,IF($B$4=$B$16,$E$16,0))))))) -> 1200 | D5: + | E5: 6 | F5: / | G5: 3 | H5: - | I5: 4 | J5: * | K5: 6 | Q5: =SUM(Q3:Q4) -> 100 | R5: =SUM(R3:R4) -> 200 | S5: =SUM(S3:S4) -> 200 | T5: 0 | U5: 320 | V5: 0 | W5: 80 | X5: 0 | Y5: 0 | Z5: =SUM(Z3:Z4) -> 0 | AA5: 2400 | AB5: 4800 | AC5: 0 | AD5: 12441.6 | AE5: 0 | AF5: 7962.624 | AG5: 0 | AH5: 0 | AI5: -790 | AJ5: -220 | AK5: 1585 | AL5: 0 | AM5: 3332.777945 | AN5: 0 | AO5: 2229.766857 | AP5: 0 | AQ5: 0 | AS5: 38832.6912
A6: 0 | B6: production costs | C6: =SUM($E$6:$K$6) -> 1310 | E6: 240 | G6: 700 | I6: 250 | K6: 120
B7: profit | C7: =IF($K$4="",0,C5-C6) -> -110 | E7: =E5*Sheet2!$B$3 -> 240 | G7: =Sheet2!$B$4/G5 -> 700 | I7: =Sheet2!$B$5/I5 -> 250 | K7: =K5*Sheet2!$B$6 -> 120 | AR7: efficiency this turn | AS7: =IF(C7=0,0,C7/AI49) -> 1.434782609
E8: =C4+E5 -> 63 | G8: =E4/G5 -> 21 | I8: =G4-I5 -> 17 | K8: =I4*K5 -> 102 | AR8: overall efficiency | AS8: =IF(AS3=0,0,stats!D13/AS3) -> 0.7016299701
B9: Products | C9: Sum | D9: Demand | E9: Price | N9: coef | O9: copied | P9: RN
A10: 10 | B10: stripped timber | C10: 100+ | D10: =IF($O$10>6,"high",IF($O$10>3,"normal","low")) -> low | E10: =($U$19*Sheet2!$D$10)*$N$10 -> 1200 | N10: =IF(O10>6,1.4,IF(O10>3,1,0.6)) -> 0.6 | O10: 1 | P10: =IF($Q$18=1,5,RANDBETWEEN(1,9)) -> 8
A11: 1 | B11: cut timber | C11: 200+ | D11: =IF($O$11>6,"high",IF($O$11>3,"normal","low")) -> normal | E11: =($U$19*Sheet2!$D$11)*$N$11 -> 2400 | N11: =IF(O11>6,1.4,IF(O11>3,1,0.6)) -> 1 | O11: 5 | P11: =IF($Q$18=1,5,RANDBETWEEN(1,9)) -> 9
A12: =SUM(A10:A11) -> 11 | B12: wood chip | C12: 300+ | D12: =IF($O$12>6,"high",IF($O$12>3,"normal","low")) -> low | E12: =($U$19*Sheet2!$D$12)*$N$12 -> 1728 | N12: 0.6 | O12: 3 | P12: 8
B13: wood pulp | C13: 400+ | D13: =IF($O$13>6,"high",IF($O$13>3,"normal","low")) -> low | E13: =($U$19*Sheet2!$D$13)*$N$13 -> 2073.6 | N13: 0.6 | O13: 3 | P13: 6
B14: cardboard | C14: 500+ | D14: =IF($O$14>6,"high",IF($O$14>3,"normal","low")) -> low | E14: =($U$19*Sheet2!$D$14)*$N$14 -> 2488.32 | I14: =NOW() -> 40736.84815 | J14: 40736.84815 | N14: 0.6 | O14: 2 | P14: 7
B15: industrial paper | C15: 600+ | D15: =IF($O$15>6,"high",IF($O$15>3,"normal","low")) -> low | E15: =($U$19*Sheet2!$D$15)*$N$15 -> 2985.984 | I15: =NOW() -> 40736.84815 | J15: 40736.84462 | N15: 0.6 | O15: 1 | P15: 6
B16: consumer paper | C16: 700+ | D16: =IF($O$16>6,"high",IF($O$16>3,"normal","low")) -> low | E16: =($U$19*Sheet2!$D$16)*$N$16 -> 3583.1808 | J16: =IF(J14=0,0,J14-J15) -> 00:05:04.800 | N16: 0.6 | O16: 2 | P16: 2
B17: waste | C17: 800+ | D17: nil | E17: 0 | I17: =IF($K$4="",0,$AI$49) -> -76.66666667 | J17: =$AS$8 -> 0.7016299701
C18: =IF(O2=1,"Game over",IF(AND(E5>0,A3=1,A6=1),"Click process 1",IF(AND(G5>0,A3=2,A6=1),"Click process 2",IF(AND(I5>0,A3=3,A6=1),"Click process 3",IF(AND(K5>0,A3=4,A6=1),"Click process 4",IF(A12=21,"Click New Game to continue",IF(D29=0,"Click Next Batch",CONCATENATE("Select n for process ",A3)))))))) -> Game over | D18: n | F18: =CONCATENATE("turn ",$A$10) -> turn 10 | H18: MAKE A FAST PROFIT IN 10 TURNS | P18: constant demand | Q18: 0 | T18: batch | U18: tons | V18: process | X18: batch | Z18: next size
A19: 0 | D19: 0 | H19: PROFIT | I19: =stats!$C$22 -> 6247.544802 | J19: BEST | K19: 19177.22714 | Q19: =IF(A1=0,C4,IF(A1=1,E4,IF(A1=2,G4,IF(A1=3,I4,K4)))) -> 102 | T19: 3 | U19: =IF(T19=1,1,IF(T19=2,10,IF(T19=3,100,0))) -> 100 | V19: =SUM(Q4:Y4) -> 100 | X19: =IF(T19=2,S20/2,0) -> 0 | Z19: =IF(U19=100,100,U19*10) -> 100 | AD19: 40n
A20: 0 | D20: 0 | H20: SCORE | I20: =IF($O$2=1,$F$33,"") -> 2630.078803 | J20: FLAIR | K20: =IF($O$2=1,$AS$8,"") -> 0.7016299701 | X20: =S20+X19 -> 0 | AD20: 2000/n
A21: 0 | D21: 0 | H21: BEST | I21: 16903 | J21: TIME | K21: =IF($O$2=1,$J$16,"") -> 00:05:04.800 | AD21: 1000/n
A22: 0 | D22: 0 | T22: =C4 -> 57 | U22: =D19 -> 0 | V22: =D20 -> 0 | W22: =D21 -> 0 | X22: =D22 -> 0 | AD22: 20n
S23: sales | T23: 57 | U23: 6 | V23: 4 | W23: 3 | X23: 6 | AC23: costs | AI23: profit
T24: =$T$23 -> 57 | U24: =$U$23 -> 6 | V24: =$V$23 -> 4 | W24: =$W$23 -> 3 | X24: =$X$23 -> 6 | Y24: =(((T24+U24)/V24)-W24)*X24 -> 76.5 | Z24: =IF(Y24>800,0,IF(Y24>700,$E$16,IF(Y24>600,$E$15,IF(Y24>500,$E$14,IF(Y24>400,$E$13,IF(Y24>300,$E$12,IF(Y24>200,$E$11,AA24))))))) -> 0 | AA24: =IF(Y24>100,$E$10,0) -> 0 | AC24: =U24*40 -> 240 | AD24: =2000/V24 -> 500 | AE24: =1000/W24 -> 333.3333333 | AF24: =X24*20 -> 120 | AG24: =SUM(AC24:AF24) -> 1193.333333 | AI24: =Z24-AG24 -> -1193.333333
B25: cost | T25: =$T$23 -> 57 | U25: 6 | V25: =$V$23 -> 4 | W25: =$X$23 -> 6 | X25: =$W$23 -> 3 | Y25: =(((T25+U25)/V25)-W25)*X25 -> 29.25 | Z25: =IF(Y25>800,0,IF(Y25>700,$E$16,IF(Y25>600,$E$15,IF(Y25>500,$E$14,IF(Y25>400,$E$13,IF(Y25>300,$E$12,IF(Y25>200,$E$11,AA25))))))) -> 0 | AA25: =IF(Y25>100,$E$10,0) -> 0 | AC25: =U25*40 -> 240 | AD25: =2000/V25 -> 500 | AE25: =1000/W25 -> 166.6666667 | AF25: =X25*20 -> 60 | AG25: =SUM(AC25:AF25) -> 966.6666667 | AI25: =Z25-AG25 -> -966.6666667
B26: sales | T26: 57 | U26: 6 | V26: =$W$23 -> 3 | W26: =$V$23 -> 4 | X26: =$X$23 -> 6 | Y26: 102 | Z26: 1200 | AA26: 1200 | AC26: 240 | AD26: 666.6666667 | AE26: 250 | AF26: 120 | AG26: 1276.666667 | AI26: -76.66666667
T27: 57 | U27: 6 | V27: =$W$23 -> 3 | W27: =$X$23 -> 6 | X27: =$V$23 -> 4 | Y27: 60 | Z27: 0 | AA27: 0 | AC27: 240 | AD27: 666.6666667 | AE27: 166.6666667 | AF27: 80 | AG27: 1153.333333 | AI27: -1153.333333
T28: 57 | U28: 6 | V28: =$X$23 -> 6 | W28: =$V$23 -> 4 | X28: =$W$23 -> 3 | Y28: 19.5 | Z28: 0 | AA28: 0 | AC28: 240 | AD28: 333.3333333 | AE28: 250 | AF28: 60 | AG28: 883.3333333 | AI28: -883.3333333
A29: =RANDBETWEEN(1,25) -> 15 | C29: =RANDBETWEEN(50,75) -> 59 | D29: =SUM(D19:D22) -> 0 | T29: 57 | U29: 6 | V29: =$X$23 -> 6 | W29: =$W$23 -> 3 | X29: =$V$23 -> 4 | Y29: 30 | Z29: 0 | AA29: 0 | AC29: 240 | AD29: 333.3333333 | AE29: 333.3333333 | AF29: 80 | AG29: 986.6666667 | AI29: -986.6666667
A30: =RANDBETWEEN(1,25) -> 24 | H30: =K21 -> 0.003527777779 | I30: =IF(H30>0.005,0.3,IF(H30>0.0045,0.4,IF(H30>0.004,0.5,IF(H30>0.0035,0.6,IF(H30>0.003,0.7,IF(H30>0.0025,0.8,IF(H30>0.002,0.9,1))))))) -> 0.6 | T30: 57 | U30: =$V$23 -> 4 | V30: =$W$23 -> 3 | W30: =$X$23 -> 6 | X30: =$U$23 -> 6 | Y30: 86 | Z30: 0 | AA30: 0 | AC30: 160 | AD30: 666.6666667 | AE30: 166.6666667 | AF30: 120 | AG30: 1113.333333 | AI30: -1113.333333
A31: =RANDBETWEEN(1,4) -> 2 | T31: 57 | U31: 4 | V31: =$W$23 -> 3 | W31: =$U$23 -> 6 | X31: =$X$23 -> 6 | Y31: 86 | Z31: 0 | AA31: 0 | AC31: 160 | AD31: 666.6666667 | AE31: 166.6666667 | AF31: 120 | AG31: 1113.333333 | AI31: -1113.333333
A32: =RANDBETWEEN(1,25) -> 22 | F32: score | T32: 57 | U32: 4 | V32: =$U$23 -> 6 | W32: =$W$23 -> 3 | X32: =$X$23 -> 6 | Y32: 43 | Z32: 0 | AA32: 0 | AC32: 160 | AD32: 333.3333333 | AE32: 333.3333333 | AF32: 120 | AG32: 946.6666667 | AI32: -946.6666667
F33: =stats!C22*AS8*I30 -> 2630.078803 | T33: 57 | U33: 4 | V33: =$U$23 -> 6 | W33: =$X$23 -> 6 | X33: =$W$23 -> 3 | Y33: 12.5 | Z33: 0 | AA33: 0 | AC33: 160 | AD33: 333.3333333 | AE33: 166.6666667 | AF33: 60 | AG33: 720 | AI33: -720
B34: best profit flag | C34: =IF(I19>K19,1,0) -> 0 | T34: 57 | U34: 4 | V34: =$X$23 -> 6 | W34: =$U$23 -> 6 | X34: =$W$23 -> 3 | Y34: 12.5 | Z34: 0 | AA34: 0 | AC34: 160 | AD34: 333.3333333 | AE34: 166.6666667 | AF34: 60 | AG34: 720 | AI34: -720
B35: high score flag | C35: =IF(I20>I21,1,0) -> 0 | T35: 57 | U35: 4 | V35: =$X$23 -> 6 | W35: =$W$23 -> 3 | X35: =$U$23 -> 6 | Y35: 43 | Z35: 0 | AA35: 0 | AC35: 160 | AD35: 333.3333333 | AE35: 333.3333333 | AF35: 120 | AG35: 946.6666667 | AI35: -946.6666667
B36: =IF(Q19>799,"waste","unprocessed timber") -> unprocessed timber | E36: (40n) | G36: (2100/n) | I36: (1000/n) | K36: (20n) | T36: 57 | U36: =$W$23 -> 3 | V36: =$U$23 -> 6 | W36: =$V$23 -> 4 | X36: =$X$23 -> 6 | Y36: 36 | Z36: 0 | AA36: 0 | AC36: 120 | AD36: 333.3333333 | AE36: 250 | AF36: 120 | AG36: 823.3333333 | AI36: -823.3333333
T37: 57 | U37: 3 | V37: =$U$23 -> 6 | W37: =$X$23 -> 6 | X37: =$V$23 -> 4 | Y37: 16 | Z37: 0 | AA37: 0 | AC37: 120 | AD37: 333.3333333 | AE37: 166.6666667 | AF37: 80 | AG37: 700 | AI37: -700
T38: 57 | U38: 3 | V38: =$V$23 -> 4 | W38: =$U$23 -> 6 | X38: =$X$23 -> 6 | Y38: 54 | Z38: 0 | AA38: 0 | AC38: 120 | AD38: 500 | AE38: 166.6666667 | AF38: 120 | AG38: 906.6666667 | AI38: -906.6666667
T39: 57 | U39: 3 | V39: =$V$23 -> 4 | W39: =$X$23 -> 6 | X39: =$U$23 -> 6 | Y39: 54 | Z39: 0 | AA39: 0 | AC39: 120 | AD39: 500 | AE39: 166.6666667 | AF39: 120 | AG39: 906.6666667 | AI39: -906.6666667
T40: 57 | U40: 3 | V40: =$X$23 -> 6 | W40: =$U$23 -> 6 | X40: =$V$23 -> 4 | Y40: 16 | Z40: 0 | AA40: 0 | AC40: 120 | AD40: 333.3333333 | AE40: 166.6666667 | AF40: 80 | AG40: 700 | AI40: -700
T41: 57 | U41: 3 | V41: =$X$23 -> 6 | W41: =$V$23 -> 4 | X41: =$U$23 -> 6 | Y41: 36 | Z41: 0 | AA41: 0 | AC41: 120 | AD41: 333.3333333 | AE41: 250 | AF41: 120 | AG41: 823.3333333 | AI41: -823.3333333
T42: 57 | U42: =$X$23 -> 6 | V42: =$U$23 -> 6 | W42: =$V$23 -> 4 | X42: =$W$23 -> 3 | Y42: 19.5 | Z42: 0 | AA42: 0 | AC42: 240 | AD42: 333.3333333 | AE42: 250 | AF42: 60 | AG42: 883.3333333 | AI42: -883.3333333
T43: 57 | U43: 6 | V43: =$U$23 -> 6 | W43: =$W$23 -> 3 | X43: =$V$23 -> 4 | Y43: 30 | Z43: 0 | AA43: 0 | AC43: 240 | AD43: 333.3333333 | AE43: 333.3333333 | AF43: 80 | AG43: 986.6666667 | AI43: -986.6666667
T44: 57 | U44: 6 | V44: =$V$23 -> 4 | W44: =$U$23 -> 6 | X44: =$W$23 -> 3 | Y44: 29.25 | Z44: 0 | AA44: 0 | AC44: 240 | AD44: 500 | AE44: 166.6666667 | AF44: 60 | AG44: 966.6666667 | AI44: -966.6666667
T45: 57 | U45: 6 | V45: =$V$23 -> 4 | W45: =$W$23 -> 3 | X45: =$U$23 -> 6 | Y45: 76.5 | Z45: 0 | AA45: 0 | AC45: 240 | AD45: 500 | AE45: 333.3333333 | AF45: 120 | AG45: 1193.333333 | AI45: -1193.333333
T46: 57 | U46: 6 | V46: =$W$23 -> 3 | W46: =$U$23 -> 6 | X46: =$V$23 -> 4 | Y46: 60 | Z46: 0 | AA46: 0 | AC46: 240 | AD46: 666.6666667 | AE46: 166.6666667 | AF46: 80 | AG46: 1153.333333 | AI46: -1153.333333
T47: 57 | U47: 6 | V47: =$W$23 -> 3 | W47: =$V$23 -> 4 | X47: =$U$23 -> 6 | Y47: 102 | Z47: 1200 | AA47: 1200 | AC47: 240 | AD47: 666.6666667 | AE47: 250 | AF47: 120 | AG47: 1276.666667 | AI47: -76.66666667
Z49: =MAX(Z24:Z47) -> 1200 | AI49: =MAX(AI24:AI47) -> -76.66666667

Sheet Sheet2 (hidden)
B2: COST | E2: DEMAND
A3: + | B3: =0.4*Sheet1!U19 -> 40 | C3: =0.4*Sheet1!U19 -> 40 | D3: =CONCATENATE(C3,"n") -> 40n | E3: 1.4 | F3: high
A4: / | B4: =21*Sheet1!U19 -> 2100 | C4: =21*Sheet1!U19 -> 2100 | D4: =CONCATENATE(C4,"/n") -> 2100/n | E4: 1 | F4: medium
A5: - | B5: =10*Sheet1!U19 -> 1000 | C5: =10*Sheet1!U19 -> 1000 | D5: =CONCATENATE(C5,"/n") -> 1000/n | E5: 0.6 | F5: low
A6: * | B6: =0.2*Sheet1!U19 -> 20 | C6: =0.2*Sheet1!U19 -> 20 | D6: =CONCATENATE(C6,"n") -> 20n
D8: batch
A9: PRODUCT | B9: price/ton | C9: weight/tons | D9: equivalent
A10: stripped timber | B10: 20 | C10: 1 | D10: =B10*C10 -> 20
A11: cut timber | B11: =B10*1.2 -> 24 | C11: =C10 -> 1 | D11: =B11*C11 -> 24 | E11: =(D11-D10)/D10 -> 0.2
A12: wood chip | B12: =B11*1.2 -> 28.8 | C12: =C10 -> 1 | D12: 28.8 | E12: 0.2
A13: wood pulp | B13: =B12*1.5 -> 43.2 | C13: =C10*0.8 -> 0.8 | D13: 34.56 | E13: 0.2
A14: cardboard | B14: =B13*1.6 -> 69.12 | C14: =C10*0.6 -> 0.6 | D14: 41.472 | E14: 0.2
A15: industrial paper | B15: =B14*1.8 -> 124.416 | C15: =C10*0.4 -> 0.4 | D15: 49.7664 | E15: 0.2
A16: consumer paper | B16: =B15*2.4 -> 298.5984 | C16: =C10*0.2 -> 0.2 | D16: 59.71968 | E16: 0.2

Sheet stats (hidden)
C2: tons | D2: sales | E2: costs | F2: profit | G2: profit/ton | K2: all done
B3: unprocessed timber | C3: =Sheet1!$Q$3 -> 100 | D3: =Sheet1!$Z$3 -> 0 | E3: =D3-F3 -> 790 | F3: =Sheet1!$AI$3 -> -790 | G3: =IF(F3=0,0,F3/C3) -> -7.9
B4: stripped timber | C4: =Sheet1!$R$3 -> 100 | D4: =Sheet1!$AA$3 -> 1200 | E4: =D4-F4 -> 1310 | F4: =Sheet1!$AJ$3 -> -110 | G4: =IF(F4=0,0,F4/C4) -> -1.1 | K4: =IF(C4>0,1,0) -> 1
B5: cut timber | C5: =Sheet1!$S$3 -> 200 | D5: =Sheet1!$AB$3 -> 4800 | E5: 3215 | F5: =Sheet1!$AK$3 -> 1585 | G5: 7.925 | K5: =IF(C5>0,1,0) -> 1
B6: wood chip | C6: =Sheet1!$T$3 -> 0 | D6: =Sheet1!$AC$3 -> 0 | E6: 0 | F6: =Sheet1!$AL$3 -> 0 | G6: 0 | K6: 0
B7: wood pulp | C7: =Sheet1!$U$3 -> 320 | D7: =Sheet1!$AD$3 -> 12441.6 | E7: 9108.822055 | F7: =Sheet1!$AM$3 -> 3332.777945 | G7: 10.41493108 | K7: 1
B8: cardboard | C8: =Sheet1!$V$3 -> 0 | D8: =Sheet1!$AE$3 -> 0 | E8: 0 | F8: =Sheet1!$AN$3 -> 0 | G8: 0 | K8: 0
B9: industrial paper | C9: =Sheet1!$W$3 -> 80 | D9: =Sheet1!$AF$3 -> 7962.624 | E9: 5732.857143 | F9: =Sheet1!$AO$3 -> 2229.766857 | G9: 27.87208571 | K9: 1
B10: consumer paper | C10: =Sheet1!$X$3 -> 0 | D10: =Sheet1!$AG$3 -> 0 | E10: 0 | F10: =Sheet1!$AP$3 -> 0 | G10: 0 | K10: 0
B11: waste | C11: =Sheet1!$Y$3 -> 0 | D11: =Sheet1!$AH$3 -> 0 | E11: 0 | F11: =Sheet1!$AQ$3 -> 0 | G11: 0
K12: =SUM(K4:K10) -> 4
B13: Total | C13: =SUM(C3:C11) -> 800 | D13: =SUM(D3:D11) -> 26404.224 | E13: =SUM(E3:E11) -> 20156.6792 | F13: =SUM(F3:F11) -> 6247.544802 | G13: =IF(F13=0,0,F13/C13) -> 7.809431003
B16: Total Sales | C16: =D13 -> 26404.224 | G16: =ROUNDDOWN(G13,0) -> 7
B17: Production Costs | C17: =E13 -> 20156.6792
B22: Profit | C22: =C16-C17 -> 6247.544802
B24: Profit margin | C24: =IF(C16=0,0,C22/C16) -> 0.2366115665
